Cogmind - Beta 11 @@@ ROGUE MODE // 2022.03.18 @ 04:15:45 Player: woegarden Result: Destroyed by Y-45 Defender with Heavy Assault Rifle Performance ------------- Evolutions (2) 1000 Regions Visited (4) 800 Robots Destroyed (16) 80 Value Destroyed (447) 447 Prototype IDs (3) 60 Alien Tech Used (0) 0 Bonus (0) 0 TOTAL SCORE: 2387 Bonus ------- None Cogmind --------- Core Integrity 0/550 Matter 46/300 Energy 54/100 System Corruption 0% Temperature Cool (0) Movement Core (50) Location -8/Materials Parts ------- > --- POWER (2) -------- (None) > --- PROPULSION (4) --- (None) > --- UTILITY (3) ------ Advanced Targeting Computer > --- WEAPON (2) ------- Improved Datajack > --- INVENTORY (5) ---- High-capacity Storage Unit Medium Laser Peak State ------------ > --- POWER ------------ (None) > --- PROPULSION ------- Flight Unit Flight Unit VTOL Module > --- UTILITY ---------- Cryofiber Web Advanced Targeting Computer Shield Generator > --- WEAPON ----------- Light EM Pulse Cannon Rocket Launcher > --- INVENTORY -------- High-capacity Storage Unit [Rating: 16] Favorites ----------- Power Light Ion Engine Engine Light Ion Engine Propulsion Aluminum Leg Leg Aluminum Leg Wheel Wheel Flight Unit Flight Unit Utility Large Storage Unit Device Improved Terrain Scanner Storage Large Storage Unit Processor Advanced Targeting Computer Weapon Medium Laser Energy Gun Medium Laser Energy Cannon Light EM Pulse Cannon Ballistic Gun Assault Rifle Launcher Rocket Launcher Special Melee Weapon Improved Datajack Build | -11 -10 -10 -9 -8 ------- Run | Scr Mat Min Mat Mat Slots Evolved 4 | . . . 2 2 Power 1 | . . . . 1 Propulsion 2 | . . . 2 . Utility 1 | . . . . 1 Weapon . | . . . . . Parts Attached 41 | . 7 7 19 8 Power 1 | . . . 1 . Engine 1 | . . . 1 . Core . | . . . . . Reactor . | . . . . . Propulsion 18 | . . 4 14 . Treads . | . . . . . Leg 4 | . . . 4 . Wheel 4 | . . 2 2 . Hover . | . . . . . Flight 10 | . . 2 8 . Utility 13 | . 7 1 2 3 Device 3 | . . 1 . 2 Storage 9 | . 7 . 2 . Processor 1 | . . . . 1 Hackware . | . . . . . Protection . | . . . . . Artifact . | . . . . . Weapon 9 | . . 2 2 5 Energy Gun 2 | . . . 1 1 Energy Cannon 2 | . . 1 . 1 Ballistic Gun 2 | . . 1 1 . Ballistic Cannon . | . . . . . Launcher 2 | . . . . 2 Special Weapon . | . . . . . Impact Weapon . | . . . . . Slashing Weapon . | . . . . . Piercing Weapon . | . . . . . Special Melee Weapon 1 | . . . . 1 Unidentified Prototypes . | . . . . . Parts Lost 24 | . . 2 13 9 Power 2 | . . . 2 . Propulsion 11 | . . 1 7 3 Utility 3 | . . . 1 2 Weapon 8 | . . 1 3 4 Highest Loss Streak 10 | . . 2 10 8 To Critical Strikes . | . . . . . Average Slot Usage (%) 87 | . 85 93 82 29 Engine 12 | . 14 14 7 . Leg 16 | . 28 15 9 . Wheel 9 | . . 11 13 . Flight 2 | . . . 16 6 Device 7 | . . 10 10 9 Storage 12 | . 14 14 10 . Energy Gun 16 | . 28 17 1 . Energy Cannon 2 | . . 4 . 1 Ballistic Gun 4 | . . 4 12 . Naked Turns . | . . . . . Heaviest Build 30 | 11 26 30 27 11 Greatest Support 40 | 20 20 20 40 12 Greatest Overweight (x) 6 | . 1 3 6 2 Average Overweight (x) . | . . 1 . . Largest Inventory Capacity 20 | . 20 15 20 5 Average Capacity 14 | . 14 15 14 5 Most Carried 14 | . 12 14 14 5 Average Carried 10 | . 8 12 11 1 Final Capacity 15 | 8 15 15 5 5 Final Carried 12 | 6 12 12 5 2 Class Distribution -------------------- 95% | Mutant 4% | Scavenger-Mutant Dominant Class ---------------- Mutant | -10/Materials Mutant | -10/Mines Mutant | -9/Materials Mutant | -8/Materials Resources | -11 -10 -10 -9 -8 ----------- Run | Scr Mat Min Mat Mat Matter Collected 417 | 200 70 89 58 . Remotely . | . . . . . Salvage Created 503 | . 147 130 153 73 Parts 34 | . 11 3 15 5 Haulers Intercepted . | . . . . . Recyclers Shooed 1 | . . 1 . . Parts Field Recycled . | . . . . . Retrieved Matter . | . . . . . Parts Self-Destructed . | . . . . . Prevented . | . . . . . Kills | -11 -10 -10 -9 -8 ------- Run | Scr Mat Min Mat Mat Combat Hostiles Destroyed 19 | . 5 4 6 4 Guns 14 | . 4 4 6 . AOE 4 | . . . . 4 Classes Destroyed 5 | . 2 2 . 1 Recycler 1 | . . 1 . . Swarmer 6 | . 3 . 3 . Grunt 8 | . 2 . 3 3 Duelist 1 | . . . . 1 Assembled 4 | . . 4 . . Best Kill Streak 4 | . 4 2 4 3 Combat Bots Only 4 | . 4 2 4 3 Max Kills in Single Turn 2 | . 2 1 1 1 Gunslinging 1 | . 1 . . . Exploded 1 | . . . . 1 Melee . | . . . . . Uniques/NPCs Destroyed . | . . . . . Combat | -11 -10 -10 -9 -8 -------- Run | Scr Mat Min Mat Mat Damage Taken 2506 | . 240 233 1098 935 Core 951 | . 35 47 316 553 Absorbed by Shields 4 | . . . . 4 Core Remaining (%) 62 | 100 . 67 21 . Volleys Fired 61 | . 15 17 21 8 Largest 2 | . 2 2 2 1 Hottest 90 | . 90 90 85 33 Shots Fired 108 | . 29 31 40 8 Gun 96 | . 29 27 40 . Cannon 4 | . . 4 . . Launcher 8 | . . . . 8 Special . | . . . . . Kinetic 29 | . . 4 25 . Thermal 67 | . 29 23 15 . Explosive 8 | . . . . 8 Electromagnetic 4 | . . 4 . . Robot Hit Streak 7 | . 6 3 7 3 Robot Miss Streak 5 | . 2 2 5 1 Penetration Max . | . . . . . Secondary Targets 2 | . 1 . 1 . Max Gunslinging Chain 1 | . 1 . 1 . Shots Hit Robots 64 | . 18 16 24 6 Core Hits 38 | . 7 8 8 15 Critical Kills . | . . . . . Critical Parts Destroyed . | . . . . . Critical Strikes . | . . . . . Melee Attacks . | . . . . . Impact . | . . . . . Slashing . | . . . . . Piercing . | . . . . . Sneak Attacks . | . . . . . Combat Hostiles . | . . . . . Follow-up Attacks . | . . . . . Damage Inflicted 1659 | . 230 204 352 873 Guns 748 | . 224 172 352 . Cannons 23 | . . 23 . . Explosions 873 | . . . . 873 Melee . | . . . . . Ramming 15 | . 6 9 . . Kinetic 215 | . . 22 193 . Thermal 533 | . 224 150 159 . Explosive 873 | . . . . 873 Electromagnetic 23 | . . 23 . . Impact . | . . . . . Slashing . | . . . . . Piercing . | . . . . . Highest Corruption 2 | . . 2 . . Average Corruption 2 | . . 2 . . Corruption Purged . | . . . . . Corruption Blocked . | . . . . . Effects 6 | . . 6 . . Message Errors 2 | . . 2 . . Matter Fused 1 | . . 1 . . Energy Discharges 1 | . . 1 . . Data Loss (minor) 2 | . . 2 . . Overload Shots . | . . . . . Overflow Damage 6 | . . . . 6 Projectiles . | . . . . . Explosions 6 | . . . . 6 Melee . | . . . . . Knockbacks 1 | . 1 . . . Impact 1 | . 1 . . . Kinetic . | . . . . . Secondary . | . . . . . Self-Inflicted Damage 145 | . . . . 145 Shots 5 | . . . . 5 Rammed 1 | . . 1 . . Targets Rammed 4 | . 2 2 . . Kicked 3 | . 2 1 . . Crushed . | . . . . . Highest Temperature 220 | . 204 120 220 4 Average Temperature 76 | . 85 32 118 3 Received Heat Transfer 846 | . 96 . 264 486 Siege Activations . | . . . . . Robots Corrupted . | . . . . . Combat Hostiles . | . . . . . Parts Fried . | . . . . . Impact Corruptions . | . . . . . Robots Melted 1 | . 1 . . . Combat Hostiles 1 | . 1 . . . Parts Melted 2 | . 2 . . . Heat Transferred 1362 | . 595 397 370 . Parts Sabotaged . | . . . . . Parts Stolen . | . . . . . Parts Stripped . | . . . . . Power Chain Reactions . | . . . . . Missiles Intercepted . | . . . . . Alert | -11 -10 -10 -9 -8 ------- Run | Scr Mat Min Mat Mat Peak Influence 171 | . 171 5 130 116 Initial 18 | . . . . 18 Average 29 | . 88 1 54 56 Maximum Alert Level . | . . . . . Low Security (%) 100 | . 100 100 100 100 Level 1 . | . . . . . Level 2 . | . . . . . Level 3 . | . . . . . Level 4 . | . . . . . Level 5 . | . . . . . High Security . | . . . . . Max Security . | . . . . . Squads Dispatched 4 | . . . 4 . Investigation 2 | . . . 2 . Extermination . | . . . . . Reinforcement 2 | . . . 2 . Assault . | . . . . . Garrison . | . . . . . Intercept . | . . . . . Searches Triggered . | . . . . . Construction Impeded . | . . . . . Haulers Reinforced . | . . . . . Active Scanning Responses . | . . . . . Cargo Convoy Interrupts . | . . . . . Stealth | -11 -10 -10 -9 -8 --------- Run | Scr Mat Min Mat Mat Distress Signals 1 | . . . 1 . Communications Jammed . | . . . . . Distress Signals . | . . . . . Times Spotted 40 | . 7 4 19 10 Peak Tracking Total 9 | . 3 2 9 7 Tactical Retreats 2 | . 1 . . 1 Traps | -11 -10 -10 -9 -8 ------- Run | Scr Mat Min Mat Mat Traps Triggered 1 | . . . 1 . Indirectly . | . . . . . Trap Hack Attempts . | . . . . . Triggered . | . . . . . Disarmed . | . . . . . Reprogrammed . | . . . . . Reused . | . . . . . Traps Extracted . | . . . . . Installed . | . . . . . Triggered . | . . . . . Machines | -11 -10 -10 -9 -8 ---------- Run | Scr Mat Min Mat Mat Machines Disabled 1 | . . . . 1 Max in Single Turn 1 | . . . . 1 Garrison Access 1 | . . . . 1 Machines Sabotaged . | . . . . . Garrisons Compromised . | . . . . . Overloaded Fab Kills . | . . . . . Hacking | -11 -10 -10 -9 -8 --------- Run | Scr Mat Min Mat Mat Machines Accessed 6 | . 3 . 2 1 Terminals 4 | . 3 . 1 . Fabricators . | . . . . . Repair Stations . | . . . . . Recycling Units 1 | . . . 1 . Scanalyzers . | . . . . . Garrison Access 1 | . . . . 1 Total Hacks 14 | . 5 . 6 3 Successful 9 | . 3 . 5 1 Failed 5 | . 2 . 1 2 Catastrophic 1 | . 1 . . . Database Lockouts . | . . . . . Manual 5 | . 2 . 3 . Terminals 7 | . 5 . 2 . Fabricators . | . . . . . Repair Stations . | . . . . . Recycling Units 4 | . . . 4 . Scanalyzers . | . . . . . Garrison Access 3 | . . . . 3 Terminal Hacks 4 | . 3 . 1 . Record 1 | . 1 . . . Part Schematic 2 | . 1 . 1 . Prototype ID Bank 1 | . 1 . . . Fabricator Hacks . | . . . . . Repair Station Hacks . | . . . . . Recycling Unit Hacks 3 | . . . 3 . Report Inventory 1 | . . . 1 . Retrieve Matter 1 | . . . 1 . Retrieve Components 1 | . . . 1 . Scanalyzer . | . . . . . Garrison Access Hacks 1 | . . . . 1 Seal Access 1 | . . . . 1 Unauthorized Hacks 1 | . . . 1 . Terminals . | . . . . . Fabricators . | . . . . . Repair Stations . | . . . . . Recycling Units 1 | . . . 1 . Reject 1 | . . . 1 . Scanalyzers . | . . . . . Garrison Access . | . . . . . Data Cores Recovered . | . . . . . Used . | . . . . . Hacking Detections 5 | . 3 . 1 1 Full Trace Events 1 | . . . 1 . Feedback Events . | . . . . . Feedback Blocked . | . . . . . Robot Schematics Acquired . | . . . . . Robots Built . | . . . . . Authchips . | . . . . . Time . | . . . . . Total Robot Build Rating . | . . . . . Part Schematics Acquired 2 | . 1 . 1 . Parts Built . | . . . . . Authchips . | . . . . . Time . | . . . . . Total Part Build Rating . | . . . . . Parts Repaired . | . . . . . Time . | . . . . . Parts Recycled . | . . . . . Recycled Matter . | . . . . . Retrieved Matter . | . . . . . Retrieved Components 1 | . . . 1 . Parts Scanalyzed . | . . . . . Part Schematics Acquired . | . . . . . Parts Damaged . | . . . . . Bothacking | -11 -10 -10 -9 -8 ------------ Run | Scr Mat Min Mat Mat Used RIF Installer . | . . . . . Robots Hacked . | . . . . . Non-combat . | . . . . . Combat . | . . . . . Robot Hacks Applied . | . . . . . Relay Couplers Released . | . . . . . Fabnet Peak Effective % . | . . . . . Robots Rewired . | . . . . . Allies Hacked . | . . . . . Hacks Repelled . | . . . . . Allies | -11 -10 -10 -9 -8 -------- Run | Scr Mat Min Mat Mat Total Allies . | . . . . . Largest Group . | . . . . . Highest-Rated Group . | . . . . . Highest-Rated Ally . | . . . . . Total Orders . | . . . . . Ally Attacks . | . . . . . Total Damage . | . . . . . Kills . | . . . . . Allies Corrupted . | . . . . . Allies Melted . | . . . . . Intel | -11 -10 -10 -9 -8 ------- Run | Scr Mat Min Mat Mat Robot Analysis Total . | . . . . . Derelict Logs Recovered 1 | . . 1 . . Drone Launches . | . . . . . Drone Recoveries . | . . . . . Exploration | -11 -10 -10 -9 -8 ------------- Run | Scr Mat Min Mat Mat Turns Passed 2002 | . 423 1210 278 91 Spaces Moved 1347 | 1 193 851 168 134 Core 106 | . . . 1 105 Treads . | . . . . . Legs 581 | 1 193 339 48 . Wheels 565 | . . 509 56 . Hover . | . . . . . Flight 95 | . . 3 63 29 Fastest Speed 32 | 120 120 95 32 32 Average Speed 129 | 120 181 133 109 47 Slowest Speed 350 | 120 190 277 350 150 Overloaded Moves . | . . . . . Propulsion Burnouts . | . . . . . Robots Hopped . | . . . . . Cave-ins Triggered . | . . . . . Exploration Rate (%) 33 | 2 25 98 22 18 Regions Visited 4 Branch Regions 1 Pre-discovered Areas 1 | . . 1 . . Known Exits Taken . | . . . . . Unknown Exits Taken 4 | 1 1 1 1 . Scrap Searched 2 | . . 2 . . Spaces Dug . | . . . . . Terrain Destroyed 21 | . . . . 21 Melee . | . . . . . Projectile . | . . . . . AOE 21 | . . . . 21 Terrain Rammed . | . . . . . Walls Destroyed . | . . . . . Machines Disabled . | . . . . . Actions | -11 -10 -10 -9 -8 --------- Run | Scr Mat Min Mat Mat Total 1501 | . 237 890 222 152 Wait 4 | . . 3 1 . Move 1343 | . 192 850 167 134 Hop . | . . . . . Pick Up 23 | . 10 6 5 2 Fast Attach 19 | . 6 2 8 3 Attach 18 | . . 4 9 5 Detach 3 | . 1 . 2 . Swap 4 | . 1 1 2 . Drop 22 | . 10 5 7 . Fire 61 | . 15 17 21 8 Melee . | . . . . . Ram 1 | . . 1 . . Kick 3 | . 2 1 . . Crush . | . . . . . Escape Stasis . | . . . . . Rewire . | . . . . . Trap . | . . . . . Miscellaneous . | . . . . . Route ------- -11/Scrapyard -10/Materials -10/Mines (discovered 3 exits: *Mat x2 / [*Exi]) -9/Materials (discovered 2 exits: *Mat / Min) -8/Materials History --------- Turn | Location | Event 1 | -11/Scrapyard | Discovered new exit (range 0) 1 | -11/Scrapyard | Entered Materials 306 | -10/Materials | Build established: Mutant 377 | -10/Materials | Discovered new exit (range 16) 424 | -10/Materials | Entered Mines 503 | -10/Mines | Assembled infested the area 508 | -10/Mines | Assisted by a Guerilla fighting off Assembled 616 | -10/Mines | Discovered new exit (range 8) 618 | -10/Mines | Learned location of Storage (-8) 1276 | -10/Mines | Received a Rocket Launcher from a helpful Derelict 1446 | -10/Mines | Discovered new exit (range 8) 1473 | -10/Mines | Deemed a non-threat by the Exiles lab entrance 1473 | -10/Mines | Discovered new exit (range 5) 1634 | -10/Mines | Entered Materials 1634 | -9/Materials | Evolved 2 slots: Propulsion x2 1635 | -9/Materials | Identified exit to Mines 1813 | -9/Materials | Lost 3 parts (1p1n1w) 1895 | -9/Materials | Core integrity fell below 50% 1908 | -9/Materials | Discovered new exit (range 13) 1912 | -9/Materials | Entered another Materials area 1912 | -8/Materials | Evolved 2 slots: Power x1, Utility x1 1930 | -8/Materials | Lost 10 parts (1p6n1u2w) 1943 | -8/Materials | Core integrity fell below 50% 1964 | -8/Materials | Core integrity fell below 20% 1993 | -8/Materials | Lost 8 parts (3n1u4w) 2003 | -8/Materials | Destroyed by Y-45 Defender with Heavy Assault Rifle Last Messages --------------- 01935_ Lgt. EM Pulse Cannon destroyed. 01936_ VTOL Module destroyed. 01938_ Shield Generator destroyed. 01940_ Rocket Launcher destroyed. 01949_ Acquired Grenade Launcher. 01952_ Atomic Centrifuge disabled. 01954_ L-31 Rogue destroyed. 01955_ Grenade Launcher destroyed. 01960_ Electrolysis Chamber disabled. 01962_ Acquired Particle Gun. 01962_ Particle Gun destroyed. 01965_ Critical hit (Burn: +37). 01982_ Acquired Med. Laser. 01986_ Acquired Imp. Datajack. 01994_ Connecting with Garrison Access... 01994_ Current location identified: Materials >>Seal Access door sealed. 02000_ Cryofiber Web destroyed. 02000_ Critical hit (Burn: +37). Map ----- +----------------------------------------------------+ | ??????????????????????????# ! #?# """ | | ??????????????????????????# #?# | | ??????????????????????????##" ""###### #?######? | | ???????????????????????????#"R""?????# #???????? | | ???????????????????????????#"????????# #???????? | | ???????????????????????????########### +???????? | | ???????????????????????????# ## #???????? | | ???????????????????????????# """ ## #???????? | | ???????????????????????????# G" # #???????? | | ???????????????????????????# """ ## #???????? | | ???????????????????????????# ## #???????? | | ???????????????????????????# [[ ! ## #???????? | | ???????????????????????????# [[ ## #???????? | | ???????????????????????????# ## #???????? | | ???????????????????????????# ## #???????? | | ???????????????????????#########+##### #???????? | | ???????????????????????# #???????? | | ???????????????????????# #???????? | | ???????????????????????# #???????? | | ???????????????????????# ##### ##+####???????? | | ???????????????????????# #???# # ?????????? | | ???????????????????????# #???# # """ ???????? | | ???????????????????????# #???# # """ ""?????? | | ???????????????????????# #???# # """ """????? | | ???????????????????????# #???# # ????? | | ???????????????????????# @ #???# ##########????? | | ???????????????????????# #???# #?????????????? | | ???????????????????????# #???# #?????????????? | | ???????????????????????# #???# #?????????????? | | ???????????????????????# #???# #?????????????? | | ??????????????????????? ???# +?????????????? | | ??????????????????????? ???# ??????????????? | | ?????????????????????? Y #??# ??????????????? | | ?????????????????????? #??? ??????????????? | | ??????????????????????# #????????????????????? | | ??????????????????????## ##????????????????????? | | ???????????????????????# #?????????????????????? | | ???????????????????????# #?????????????????????? | | ???????????????????????? ??????????????????????? | | ???????????????????????? ??????????????????????? | | ???????????????????????? ??????????????????????? | | ?????????????????????????????????????????????????? | | ?????????????????????????????????????????????????? | | ?????????????????????????????????????????????????? | | ?????????????????????????????????????????????????? | | ?????????????????????????????????????????????????? | | ?????????????????????????????????????????????????? | | ?????????????????????????????????????????????????? | | ?????????????????????????????????????????????????? | | ?????????????????????????????????????????????????? | +----------------------------------------------------+ Best States ------------- Heat Dissipation 31 Energy Generation 10 Energy Capacity 125 Matter Stores 300 Matter Capacity 300 Sight Range 16 Terrain Scan Range 16 Terrain Scan Density 10 Base Temperature (-) 100 Evasion (%) 63 Targeting Accuracy 8 Item Schematics ----------------- Cargo Storage Unit | -10/Materials | Hacked Trap Extractor | -9/Materials | Hacked Robot Schematics ------------------ None Fabricated ------------ Nothing Alien Tech Used ----------------- None Achievements -------------- True Hacker Challenges ------------ None Game ------ Seed ChargeVortexSabre Manual? 0 Play Time 00:27:19 Cumulative 74.5 hours Start 2022.03.18 @ 03:49:40 End 2022.03.18 @ 04:15:45 Sessions 1 Manual Loads 0 Difficulty Rogue Special Mode None Game No. 104 Rogue 58 Adventurer 45 Explorer 1 Win Type - Total 0 Types 0/0/0/0/0/0/0/0/0 Lore% 23 Gallery% 43 Achievement% 31 Wizard Run 0 Options --------- ASCII 0 Keyboard 0 Movement Mouse Keybinds 0 Fullscreen 2 Font 18/X11Bold Map View 76x50 Tactical HUD 1 Map Filters NONE Filters LOW_CONTRAST(13,24,33)|BRIGHTNESS(90)|SATURATION(87) Steam 1 RUN: 99bc663d-ac05-44e0-aa57-a432163e4e07